[Event "Polish University-ch Women 2024"]
[Site "Lublin"]
[Date "2024.02.23"]
[Round "5.4"]
[White "Kroliczek, Gabriela"]
[Black "Harazinska, Magdalena"]
[Result "1-0"]
[ECO "B23"]
[WhiteElo "1928"]
[BlackElo "1950"]
[Annotator "ChessBase"]
[PlyCount "89"]
[EventDate "2024.02.22"]
[EventType "swiss"]
[EventCountry "POL"]
[SourceTitle "playchess.com"]
[Source "ChessBase"]
[SourceQuality "1"]
[TimeControl "600+3"]

1. e4 {[%emt 0:00:02]} c5 {[%emt 0:00:01]} 2. Nc3 {[%emt 0:00:01]} a6 {[%emt 0:10:08]} 3. d4 {[%emt 0:00:11]} cxd4 {[%emt 0:00:00]} 4. Qxd4 {[%emt 0:00:02]} Nc6 {[%emt 0:00:00]} 5. Qd2 {[%emt 0:00:01]} Nf6 {[%emt 0:00:00]} 6. b3 {[%emt 0:00:02]} e6 {[%emt 0:00:00]} 7. Bb2 {[%emt 0:00:01]} Be7 {[%emt 0:00:00]} 8. O-O-O {[%emt 0:00:17]} Qc7 {[%emt 0:00:00]} 9. Kb1 {[%emt 0:00:02]} b5 {[%emt 0:00:00]} 10. f3 {[%emt 0:00:02]} d6 {[%emt 0:00:00]} 11. g4 {[%emt 0:00:31]} O-O {[%emt 0:00:00]} 12. h4 {[%emt 0:01:04]} Bb7 {[%emt 0:00:00]} 13. Nge2 {[%emt 0:01:34]} Nd7 {[%emt 0:00:00]} 14. g5 {[%emt 0:00:48]} Nb6 {[%emt 0:00:00]} 15. Nf4 {[%emt 0:00:31]} Ne5 {[%emt 0:00:00]} 16. Qf2 {[%emt 0:00:53]} Rac8 {[%emt 0:00:00]} 17. Nd3 {[%emt 0:00:51]} Nc6 {[%emt 0:00:00]} 18. f4 {[%emt 0:00:55]} d5 {[%emt 0:00:00]} 19. exd5 {[%emt 0:00:01]} Nxd5 {[%emt 0:00:00]} 20. Nxd5 {[%emt 0:00:02]} exd5 {[%emt 0:00:00]} 21. f5 {[%emt 0:00:10]} Bd6 {[%emt 0:00:00]} 22. Bg2 {[%emt 0:00:13]} d4 {[%emt 0:00:00]} 23. h5 {[%emt 0:00:14]} Bg3 {[%emt 0:00:00]} 24. Qd2 {[%emt 0:00:01]} Rfe8 {[%emt 0:00:00]} 25. g6 {[%emt 0:00:45]} fxg6 {[%emt 0:00:00]} 26. hxg6 {[%emt 0:00:02]} h6 {[%emt 0:00:00]} 27. Bd5+ {[%emt 0:00:01]} Kf8 {[%emt 0:00:01]} 28. Rdf1 {[%emt 0:01:51]} Ke7 {[%emt 0:00:43]} 29. Be6 {[%emt 0:00:15]} Rcd8 {[%emt 0:00:16]} 30. Qe2 {[%emt 0:00:01]} Ne5 {[%emt 0:00:04]} 31. Rhg1 {[%emt 0:00:06]} Nxd3 {[%emt 0:00:04]} 32. Qxd3 {[%emt 0:00:01]} Be5 {[%emt 0:00:03]} 33. Re1 {[%emt 0:00:01]} Kf8 {[%emt 0:00:10]} 34. Bf7 {[%emt 0:00:04]} Re7 {[%emt 0:00:01]} 35. Ba3 {[%emt 0:00:01]} Bd6 {[%emt 0:00:02]} 36. Bb2 {[%emt 0:00:01]} Bh2 {[%emt 0:00:11]} 37. Rgf1 {[%emt 0:00:01]} Bg3 {[%emt 0:00:03]} 38. Rxe7 {[%emt 0:00:02]} Kxe7 {[%emt 0:00:03]} 39. Bxd4 {[%emt 0:00:13]} Kf8 {[%emt 0:00:10]} 40. Qe3 {[%emt 0:00:02]} Bd6 {[%emt 0:00:00]} 41. Bb2 {[%emt 0:00:01]} Bc5 {[%emt 0:00:00]} 42. Qc3 {[%emt 0:00:01]} b4 {[%emt 0:00:09]} 43. Qxg7+ {[%emt 0:00:01]} Ke7 {[%emt 0:00:00]} 44. Qf6+ {[%emt 0:00:02]} Kf8 {[%emt 0:00:00]} 45. g7# {[%emt 0:00:00]} 1-0

[Event "Polish University-ch Women 2024"]
[Site "Lublin"]
[Date "2024.02.23"]
[Round "5.5"]
[White "Kubicka, Anna"]
[Black "Zarebska, Lena"]
[Result "1-0"]
[ECO "B25"]
[WhiteElo "2278"]
[BlackElo "1871"]
[Annotator "RC"]
[PlyCount "89"]
[EventDate "2024.02.22"]
[EventType "swiss"]
[EventCountry "POL"]
[SourceTitle "playchess.com"]
[Source "ChessBase"]
[SourceQuality "1"]
[TimeControl "600+3"]

1. e4 {[%emt 0:00:02]} c5 {[%emt 0:00:01]} 2. Ne2 {[%emt 0:00:02]} Nc6 {[%emt 0:00:03]} 3. g3 {[%emt 0:00:01]} g6 {[%emt 0:00:02]} 4. Bg2 {[%emt 0:00:01]} Bg7 {[%emt 0:00:01]} 5. O-O {[%emt 0:00:02]} e5 {[%emt 0:00:01]} 6. Nbc3 {[%emt 0:00:02]} d6 {[%emt 0:00:02]} 7. Nd5 {[%emt 0:00:02]} Nge7 {[%emt 0:00:02]} 8. Nec3 {[%emt 0:00:01]} O-O {[%emt 0:00:04]} 9. d3 {[%emt 0:00:02]} Nd4 {[%emt 0:00:09]} 10. Bg5 {[%emt 0:00:33]} f6 {[%emt 0:00:05]} 11. Be3 {[%emt 0:00:09]} Rb8 {[%emt 0:00:24]} 12. f4 {[%emt 0:00:37]} b5 {[%emt 0:00:15]} 13. Nxe7+ {[%emt 0:00:03]} Qxe7 {[%emt 0:00:02]} 14. Nd5 {[%emt 0:00:02]} Qd8 {[%emt 0:00:24]} 15. c3 {[%emt 0:00:04]} Nc6 {[%emt 0:00:08]} 16. f5 {[%emt 0:00:20]} b4 {[%emt 0:00:18]} 17. Bh3 {[%emt 0:01:31]} bxc3 {[%emt 0:00:33]} 18. bxc3 {[%emt 0:00:02]} Ne7 {[%emt 0:00:04]} 19. fxg6 {[%emt 0:00:46]} Bxh3 {[%emt 0:00:07]} 20. Qh5 {[%emt 0:00:07]} hxg6 {[%emt 0:00:18]} 21. Qxh3 {[%emt 0:00:03]} Nxd5 {[%emt 0:00:38]} 22. Qe6+ {[%emt 0:00:05]} Rf7 {[%emt 0:02:13]} 23. Qxd5 {[%emt 0:00:02]} Bf8 {[%emt 0:01:18]} 24. Rab1 {[%emt 0:00:25]} Kg7 {[%emt 0:00:04]} 25. Rxb8 {[%emt 0:00:04]} Qxb8 {[%emt 0:00:02]} 26. Bh6+ {[%emt 0:00:11]} Kg8 {[%emt 0:00:08]} 27. Rxf6 {[%emt 0:00:17]} Qc7 {[%emt 0:01:03]} 28. Bxf8 {[%emt 0:00:12]} Kxf8 {[%emt 0:00:01]} 29. Rxf7+ {[%emt 0:00:02]} Qxf7 {[%emt 0:00:01]} 30. Qxd6+ {[%emt 0:00:02]} Kg7 {[%emt 0:00:24]} 31. Qxe5+ {[%emt 0:00:02]} Kh7 {[%emt 0:00:01]} 32. Qd5 {[%emt 0:00:35]} Qf3 {[%emt 0:00:20]} 33. Qxc5 {[%emt 0:01:37]} Qxd3 {[%emt 0:00:31]} 34. Qxa7+ {[%emt 0:00:05]} Kh6 {[%emt 0:00:02]} 35. Qd4 {[%emt 0:00:13]} Qb1+ {[%emt 0:00:05]} 36. Kg2 {[%emt 0:00:17]} Qxa2+ {[%emt 0:00:03]} 37. Qf2 {[%emt 0:00:18]} Qc4 {[%emt 0:00:11]} 38. Qe3+ {[%emt 0:00:11]} Kh7 {[%emt 0:00:10]} 39. h4 {[%emt 0:00:07]} Qa2+ {[%emt 0:00:08]} 40. Qf2 {[%emt 0:00:10]} Qe6 {[%emt 0:00:04]} 41. Qa7+ {[%emt 0:00:09]} Kg8 {[%emt 0:00:46]} 42. Qa8+ {[%emt 0:00:06]} Kh7 {[%emt 0:00:12]} 43. Qd5 {[%emt 0:00:05]} Qg4 {[%emt 0:00:06]} 44. Qf7+ {[%emt 0:00:18]} Kh6 {[%emt 0:00:27]} 45. Qf4+ {[%emt 0:00:02]} 1-0

[Event "Polish University-ch Women 2024"]
[Site "Lublin"]
[Date "2024.02.23"]
[Round "5.6"]
[White "Giefert, Sara"]
[Black "Kucharska, Honorata"]
[Result "0-1"]
[ECO "D00"]
[WhiteElo "1704"]
[BlackElo "2137"]
[Annotator "ChessBase"]
[PlyCount "68"]
[EventDate "2024.02.22"]
[EventType "swiss"]
[EventCountry "POL"]
[SourceTitle "playchess.com"]
[Source "ChessBase"]
[SourceQuality "1"]
[TimeControl "600+3"]

1. d4 {[%emt 0:00:02]} Nf6 {[%emt 0:00:02]} 2. Bg5 {[%emt 0:00:01]} d5 {[%emt 0:00:07]} 3. e3 {[%emt 0:00:02]} e6 {[%emt 0:00:03]} 4. Bd3 {[%emt 0:00:04]} Be7 {[%emt 0:00:02]} 5. Nd2 {[%emt 0:00:03]} Nbd7 {[%emt 0:00:03]} 6. f4 {[%emt 0:00:05]} h6 {[%emt 0:00:40]} 7. Bh4 {[%emt 0:00:03]} c5 {[%emt 0:00:08]} 8. c3 {[%emt 0:00:01]} b6 {[%emt 0:01:35]} 9. Ngf3 {[%emt 0:00:12]} Bb7 {[%emt 0:00:03]} 10. Ne5 {[%emt 0:00:14]} Nxe5 {[%emt 0:01:03]} 11. fxe5 {[%emt 0:00:16]} Nd7 {[%emt 0:00:18]} 12. Bxe7 {[%emt 0:00:13]} Qxe7 {[%emt 0:00:01]} 13. O-O {[%emt 0:00:30]} a5 {[%emt 0:02:43]} 14. Qe2 {[%emt 0:00:17]} O-O {[%emt 0:00:20]} 15. Rf3 {[%emt 0:01:12]} f5 {[%emt 0:00:49]} 16. exf6 {[%emt 0:00:12]} Nxf6 {[%emt 0:00:02]} 17. Raf1 {[%emt 0:01:13]} e5 {[%emt 0:00:15]} 18. dxe5 {[%emt 0:00:21]} Qxe5 {[%emt 0:00:03]} 19. Rf5 {[%emt 0:00:23]} Qe7 {[%emt 0:00:08]} 20. Nf3 {[%emt 0:01:53]} Rae8 {[%emt 0:00:22]} 21. Ne5 {[%emt 0:01:26]} Bc8 {[%emt 0:00:13]} 22. Ng6 {[%emt 0:01:00]} Qxe3+ {[%emt 0:00:03]} 23. Qxe3 {[%emt 0:00:02]} Rxe3 {[%emt 0:00:02]} 24. Nxf8 {[%emt 0:00:13]} Bxf5 {[%emt 0:00:04]} 25. Bxf5 {[%emt 0:00:15]} Kxf8 {[%emt 0:00:02]} 26. h3 {[%emt 0:00:08]} Ke7 {[%emt 0:00:15]} 27. Rf2 {[%emt 0:00:06]} Kd6 {[%emt 0:00:02]} 28. Kh2 {[%emt 0:00:15]} d4 {[%emt 0:00:09]} 29. cxd4 {[%emt 0:00:07]} cxd4 {[%emt 0:00:01]} 30. Rc2 {[%emt 0:00:21]} Ke5 {[%emt 0:00:22]} 31. Bc8 {[%emt 0:00:06]} d3 {[%emt 0:00:04]} 32. Rc1 {[%emt 0:00:06]} d2 {[%emt 0:00:07]} 33. Rd1 {[%emt 0:00:02]} Ne4 {[%emt 0:00:07]} 34. Bb7 {[%emt 0:00:09]} Re1 {[%emt 0:00:02]} 0-1

[Event "Polish University-ch Women 2024"]
[Site "Lublin"]
[Date "2024.02.23"]
[Round "5.7"]
[White "Cieslak, Wiktoria"]
[Black "Michalska, Aleksandra"]
[Result "1-0"]
[ECO "B06"]
[WhiteElo "1868"]
[BlackElo "1812"]
[Annotator "NA"]
[PlyCount "103"]
[EventDate "2024.02.22"]
[EventType "swiss"]
[EventCountry "POL"]
[SourceTitle "playchess.com"]
[Source "ChessBase"]
[SourceQuality "1"]
[TimeControl "600+3"]

1. e4 {[%emt 0:00:01]} g6 {[%emt 0:00:01]} 2. d4 {[%emt 0:00:02]} Bg7 {[%emt 0:00:01]} 3. f4 {[%emt 0:00:02]} d6 {[%emt 0:00:01]} 4. Nc3 {[%emt 0:00:02]} Nd7 {[%emt 0:00:02]} 5. Nf3 {[%emt 0:00:01]} e6 {[%emt 0:00:07]} 6. Bd3 {[%emt 0:00:06]} Ne7 {[%emt 0:00:03]} 7. O-O {[%emt 0:00:07]} O-O {[%emt 0:00:08]} 8. Be3 {[%emt 0:00:22]} e5 {[%emt 0:00:20]} 9. dxe5 {[%emt 0:00:05]} dxe5 {[%emt 0:00:02]} 10. f5 {[%emt 0:00:06]} f6 {[%emt 0:00:44]} 11. Qe1 {[%emt 0:00:22]} Nb6 {[%emt 0:00:22]} 12. Rd1 {[%emt 0:00:03]} Qe8 {[%emt 0:00:05]} 13. Nd2 {[%emt 0:00:26]} g5 {[%emt 0:01:22]} 14. Nc4 {[%emt 0:00:26]} Nd7 {[%emt 0:00:31]} 15. Qg3 {[%emt 0:00:37]} a6 {[%emt 0:00:16]} 16. Be2 {[%emt 0:00:32]} b5 {[%emt 0:00:22]} 17. Nd2 {[%emt 0:00:04]} Bb7 {[%emt 0:00:10]} 18. a3 {[%emt 0:00:15]} Nc8 {[%emt 0:00:13]} 19. Nb3 {[%emt 0:00:28]} Nd6 {[%emt 0:00:10]} 20. Nc5 {[%emt 0:00:04]} Nxc5 {[%emt 0:00:49]} 21. Bxc5 {[%emt 0:00:01]} Rd8 {[%emt 0:00:13]} 22. Qe3 {[%emt 0:00:17]} Qc6 {[%emt 0:05:07]} 23. Nd5 {[%emt 0:00:03]} Rf7 {[%emt 0:00:00]} 24. Bd3 {[%emt 0:01:30]} Bf8 {[%emt 0:00:00]} 25. b4 {[%emt 0:00:47]} Bg7 {[%emt 0:00:00]} 26. Qe2 {[%emt 0:00:45]} Qe8 {[%emt 0:00:00]} 27. c4 {[%emt 0:00:20]} Bxd5 {[%emt 0:00:00]} 28. cxd5 {[%emt 0:00:02]} Nb7 {[%emt 0:00:00]} 29. Be3 {[%emt 0:00:13]} Bf8 {[%emt 0:00:00]} 30. Rc1 {[%emt 0:00:18]} Bd6 {[%emt 0:00:00]} 31. Rc6 {[%emt 0:00:13]} Ra8 {[%emt 0:00:00]} 32. Rfc1 {[%emt 0:00:16]} Qb8 {[%emt 0:00:00]} 33. Qb2 {[%emt 0:00:04]} Nd8 {[%emt 0:00:00]} 34. R6c2 {[%emt 0:00:02]} h5 {[%emt 0:00:00]} 35. Be2 {[%emt 0:00:08]} Rh7 {[%emt 0:00:00]} 36. Qb3 {[%emt 0:00:20]} Kh8 {[%emt 0:00:02]} 37. Rc3 {[%emt 0:00:26]} h4 {[%emt 0:00:14]} 38. Bf2 {[%emt 0:00:13]} Nb7 {[%emt 0:00:04]} 39. Rh3 {[%emt 0:00:33]} Qg8 {[%emt 0:00:08]} 40. Qc3 {[%emt 0:00:11]} Nd8 {[%emt 0:00:01]} 41. g4 {[%emt 0:00:22]} Rb8 {[%emt 0:00:06]} 42. Qc2 {[%emt 0:00:07]} Qf8 {[%emt 0:00:03]} 43. Rc3 {[%emt 0:00:04]} Ra8 {[%emt 0:00:04]} 44. Bc5 {[%emt 0:00:03]} Rc8 {[%emt 0:00:09]} 45. Bxd6 {[%emt 0:00:04]} Qxd6 {[%emt 0:00:02]} 46. Rc5 {[%emt 0:00:07]} Qb6 {[%emt 0:00:05]} 47. Kg2 {[%emt 0:00:03]} Qd6 {[%emt 0:00:05]} 48. a4 {[%emt 0:00:09]} bxa4 {[%emt 0:00:03]} 49. Qxa4 {[%emt 0:00:01]} Ra8 {[%emt 0:00:06]} 50. Qe8+ {[%emt 0:00:05]} Kg7 {[%emt 0:00:03]} 51. Rxc7+ {[%emt 0:00:02]} Kh6 {[%emt 0:00:01]} 52. Qg6# {[%emt 0:00:06]} 1-0

[Event "Polish University-ch Women 2024"]
[Site "Lublin"]
[Date "2024.02.23"]
[Round "5.8"]
[White "Parol, Pola"]
[Black "Kulpa, Zuzanna"]
[Result "1-0"]
[ECO "B90"]
[WhiteElo "2030"]
[BlackElo "1924"]
[Annotator "ChessBase"]
[PlyCount "53"]
[EventDate "2024.02.22"]
[EventType "swiss"]
[EventCountry "POL"]
[SourceTitle "playchess.com"]
[Source "ChessBase"]
[SourceQuality "1"]
[TimeControl "600+3"]

1. e4 {[%emt 0:00:01]} c5 {[%emt 0:00:03]} 2. Nf3 {[%emt 0:00:01]} d6 {[%emt 0:00:01]} 3. d4 {[%emt 0:00:01]} cxd4 {[%emt 0:00:02]} 4. Nxd4 {[%emt 0:00:02]} Nf6 {[%emt 0:00:01]} 5. Nc3 {[%emt 0:00:01]} a6 {[%emt 0:00:01]} 6. Nb3 {[%emt 0:00:02]} g6 {[%emt 0:00:42]} 7. Be2 {[%emt 0:00:02]} Bg7 {[%emt 0:00:02]} 8. g4 {[%emt 0:00:08]} h5 {[%emt 0:01:07]} 9. g5 {[%emt 0:00:03]} Nfd7 {[%emt 0:00:02]} 10. Be3 {[%emt 0:00:11]} b5 {[%emt 0:00:41]} 11. Bd4 {[%emt 0:00:33]} Bxd4 {[%emt 0:00:34]} 12. Qxd4 {[%emt 0:00:08]} Rg8 {[%emt 0:00:01]} 13. Nd5 {[%emt 0:00:54]} Nc6 {[%emt 0:00:28]} 14. Qd2 {[%emt 0:00:06]} Nb6 {[%emt 0:00:51]} 15. f4 {[%emt 0:01:04]} Be6 {[%emt 0:01:43]} 16. O-O-O {[%emt 0:01:25]} Rc8 {[%emt 0:01:36]} 17. Kb1 {[%emt 0:01:00]} Nb8 {[%emt 0:00:36]} 18. Rhf1 {[%emt 0:01:03]} Nc4 {[%emt 0:00:47]} 19. Qd3 {[%emt 0:00:35]} Nd7 {[%emt 0:00:54]} 20. h4 {[%emt 0:01:09]} Ndb6 {[%emt 0:00:15]} 21. Nxb6 {[%emt 0:01:07]} Qxb6 {[%emt 0:00:06]} 22. Nd4 {[%emt 0:00:17]} Bd7 {[%emt 0:00:15]} 23. f5 {[%emt 0:00:10]} Ne5 {[%emt 0:00:07]} 24. Qb3 {[%emt 0:00:10]} a5 {[%emt 0:00:09]} 25. fxg6 {[%emt 0:00:13]} a4 {[%emt 0:00:01]} 26. gxf7+ {[%emt 0:00:04]} Nxf7 {[%emt 0:00:01]} 27. Qxf7+ {[%emt 0:00:03]} 1-0

[Event "Polish University-ch Women 2024"]
[Site "Lublin"]
[Date "2024.02.23"]
[Round "5.9"]
[White "Pisarek, Elzbieta"]
[Black "Czarniecka, Aleksandra"]
[Result "0-1"]
[ECO "B52"]
[WhiteElo "1754"]
[BlackElo "1961"]
[Annotator "ChessBase"]
[PlyCount "53"]
[EventDate "2024.02.22"]
[EventType "swiss"]
[EventCountry "POL"]
[SourceTitle "playchess.com"]
[Source "ChessBase"]
[SourceQuality "1"]
[TimeControl "600+3"]

1. e4 {[%emt 0:00:01]} c5 {[%emt 0:00:00]} 2. Nf3 {[%emt 0:00:01]} d6 {[%emt 0:00:01]} 3. Bb5+ {[%emt 0:00:02]} Bd7 {[%emt 0:00:01]} 4. Bxd7+ {[%emt 0:00:02]} Qxd7 {[%emt 0:00:01]} 5. O-O {[%emt 0:00:03]} Nf6 {[%emt 0:00:12]} 6. Re1 {[%emt 0:00:11]} Nc6 {[%emt 0:00:05]} 7. c3 {[%emt 0:00:02]} e5 {[%emt 0:00:41]} 8. d4 {[%emt 0:00:29]} cxd4 {[%emt 0:01:17]} 9. cxd4 {[%emt 0:00:02]} Be7 {[%emt 0:00:03]} 10. dxe5 {[%emt 0:02:06]} dxe5 {[%emt 0:00:04]} 11. Qxd7+ {[%emt 0:00:04]} Nxd7 {[%emt 0:00:01]} 12. Nc3 {[%emt 0:00:22]} Bc5 {[%emt 0:00:55]} 13. Nd5 {[%emt 0:01:20]} O-O {[%emt 0:00:02]} 14. Be3 {[%emt 0:00:20]} Rfd8 {[%emt 0:01:00]} 15. Bxc5 {[%emt 0:00:21]} Nxc5 {[%emt 0:00:02]} 16. Rad1 {[%emt 0:00:16]} f6 {[%emt 0:00:06]} 17. h3 {[%emt 0:00:43]} Kf7 {[%emt 0:00:07]} 18. b4 {[%emt 0:00:35]} Ne6 {[%emt 0:00:36]} 19. a3 {[%emt 0:00:29]} Ne7 {[%emt 0:00:23]} 20. Nxe7 {[%emt 0:00:32]} Kxe7 {[%emt 0:00:01]} 21. Kf1 {[%emt 0:00:18]} Rac8 {[%emt 0:00:14]} 22. Rxd8 {[%emt 0:00:35]} Kxd8 {[%emt 0:00:01]} 23. Rd1+ {[%emt 0:00:19]} Ke7 {[%emt 0:00:02]} 24. Rd3 {[%emt 0:01:40]} Rc1+ {[%emt 0:00:03]} 25. Ne1 {[%emt 0:00:10]} Nd4 {[%emt 0:00:25]} 26. Rd2 {[%emt 0:00:14]} Ra1 {[%emt 0:00:10]} 27. g3 {[%emt 0:00:07]} 0-1

[Event "Polish University-ch Women 2024"]
[Site "Lublin"]
[Date "2024.02.23"]
[Round "5.10"]
[White "Kaczmarska, Joanna"]
[Black "Mirowska, Oliwia"]
[Result "1-0"]
[ECO "A08"]
[WhiteElo "1870"]
[BlackElo "1977"]
[Annotator "ChessBase"]
[PlyCount "89"]
[EventDate "2024.02.22"]
[EventType "swiss"]
[EventCountry "POL"]
[SourceTitle "playchess.com"]
[Source "ChessBase"]
[SourceQuality "1"]
[TimeControl "600+3"]

1. Nf3 {[%emt 0:00:02]} d5 {[%emt 0:00:12]} 2. g3 {[%emt 0:00:02]} c5 {[%emt 0:00:03]} 3. Bg2 {[%emt 0:00:01]} Nc6 {[%emt 0:00:02]} 4. d3 {[%emt 0:00:04]} g6 {[%emt 0:00:02]} 5. O-O {[%emt 0:00:02]} Bg7 {[%emt 0:00:02]} 6. Nbd2 {[%emt 0:00:01]} e5 {[%emt 0:00:05]} 7. e4 {[%emt 0:00:01]} d4 {[%emt 0:00:02]} 8. a4 {[%emt 0:00:17]} Nge7 {[%emt 0:00:03]} 9. Nc4 {[%emt 0:00:02]} O-O {[%emt 0:00:05]} 10. Qe2 {[%emt 0:00:39]} Be6 {[%emt 0:00:05]} 11. Ng5 {[%emt 0:01:05]} Bxc4 {[%emt 0:00:17]} 12. dxc4 {[%emt 0:00:02]} Nc8 {[%emt 0:00:54]} 13. f4 {[%emt 0:00:12]} exf4 {[%emt 0:00:16]} 14. gxf4 {[%emt 0:00:03]} h6 {[%emt 0:01:32]} 15. Nh3 {[%emt 0:01:10]} Nd6 {[%emt 0:00:16]} 16. e5 {[%emt 0:02:17]} Nf5 {[%emt 0:00:04]} 17. Bd5 {[%emt 0:00:29]} Qh4 {[%emt 0:00:29]} 18. Qg2 {[%emt 0:00:22]} Rae8 {[%emt 0:02:42]} 19. Nf2 {[%emt 0:02:14]} Nb4 {[%emt 0:00:23]} 20. Ne4 {[%emt 0:00:24]} b6 {[%emt 0:00:46]} 21. Ra3 {[%emt 0:00:22]} Qd8 {[%emt 0:00:32]} 22. Qxg6 {[%emt 0:01:07]} Nxd5 {[%emt 0:01:18]} 23. Qxf5 {[%emt 0:00:01]} Ne7 {[%emt 0:00:01]} 24. Qh5 {[%emt 0:00:01]} Ng6 {[%emt 0:00:06]} 25. f5 {[%emt 0:00:01]} Rxe5 {[%emt 0:00:05]} 26. Ng3 {[%emt 0:00:12]} Qh4 {[%emt 0:00:31]} 27. Qf3 {[%emt 0:00:01]} Ree8 {[%emt 0:00:18]} 28. fxg6 {[%emt 0:00:03]} fxg6 {[%emt 0:00:01]} 29. Qd5+ {[%emt 0:00:02]} Kh7 {[%emt 0:00:00]} 30. Rxf8 {[%emt 0:00:02]} Rxf8 {[%emt 0:00:02]} 31. Rf3 {[%emt 0:00:03]} Re8 {[%emt 0:00:02]} 32. Bd2 {[%emt 0:00:06]} d3 {[%emt 0:00:08]} 33. c3 {[%emt 0:00:06]} Qh3 {[%emt 0:00:02]} 34. Qxd3 {[%emt 0:00:03]} h5 {[%emt 0:00:07]} 35. Nf5 {[%emt 0:00:04]} Qg4+ {[%emt 0:00:02]} 36. Ng3 {[%emt 0:00:03]} h4 {[%emt 0:00:01]} 37. Rf4 {[%emt 0:00:02]} Qd1+ {[%emt 0:00:02]} 38. Rf1 {[%emt 0:00:01]} Qg4 {[%emt 0:00:02]} 39. Rf4 {[%emt 0:00:01]} Qd1+ {[%emt 0:00:02]} 40. Nf1 {[%emt 0:00:01]} Qh5 {[%emt 0:00:05]} 41. Qf3 {[%emt 0:00:08]} Qg5+ {[%emt 0:00:03]} 42. Rg4 {[%emt 0:00:02]} Qh5 {[%emt 0:00:04]} 43. h3 {[%emt 0:00:05]} Rf8 {[%emt 0:00:05]} 44. Qe4 {[%emt 0:00:03]} Kh8 {[%emt 0:00:12]} 45. Rxh4 {[%emt 0:00:02]} 1-0

[Event "Polish University-ch Women 2024"]
[Site "Lublin"]
[Date "2024.02.24"]
[Round "6.1"]
[White "Czarnecka, Lidia"]
[Black "Sliwicka, Alicja"]
[Result "0-1"]
[ECO "B53"]
[WhiteElo "2034"]
[BlackElo "2309"]
[Annotator "TA"]
[PlyCount "96"]
[EventDate "2024.02.22"]
[EventType "swiss"]
[EventCountry "POL"]
[SourceTitle "playchess.com"]
[Source "ChessBase"]
[SourceQuality "1"]
[TimeControl "600+3"]

{[%evp 9,96,2,5,7,22,-9,0,-10,-18,0,16,7,19,18,48,39,33,26,22,4,54,27,58,58,88,75,84,79,87,77,92,65,100,91,103,88,312,331,342,333,478,470,481,469,475,267,614,243,292,275,283,279,321,318,361,335,358,321,390,421,411,411,502,353,562,416,699,671,644,411,663,439,513,536,539,506,521,430,600,526,749,694,857,737,737,-1331,-1330,-1216,-1189]} 1. e4 {[%emt 0:00:01]} c5 {[%emt 0:00:42]} 2. Nf3 {[%emt 0:00:12]} d6 {[%emt 0:00:01]} 3. d4 {[%emt 0:00:02]} cxd4 {[%emt 0:00:06]} 4. Qxd4 {[%emt 0:00:25]} Nf6 {[%emt 0:00:02]} 5. h3 {[%emt 0:00:02]} Nc6 {[%emt 0:00:03]} 6. Qe3 {[%emt 0:00:01]} g6 {[%emt 0:00:04]} 7. c4 {[%emt 0:00:02]} Bg7 {[%emt 0:00:02]} 8. Nc3 {[%emt 0:00:03] Die Stellung ist ausgeglichen.} O-O {[%emt 0:00:08]} 9. Be2 {[%emt 0:00:02]} Be6 {[%emt 0:00:55]} 10. O-O {[%emt 0:00:20]} Rc8 {[%emt 0:00:05]} 11. Rb1 {[%emt 0:00:30]} a6 {[%emt 0:00:43]} 12. b3 {[%emt 0:00:30]} Qa5 {[%emt 0:00:12][%cal Of6g4]} 13. Bb2 {[%emt 0:00:51]} Qc5 {[%emt 0:00:12]} 14. Qd2 {[%emt 0:00:38]} Rfd8 {[%emt 0:00:11]} (14... b5 $11) 15. Rfe1 {[%emt 0:00:54]} Rb8 {[%emt 0:03:03]} 16. Bf1 {[%emt 0:00:35]} b5 {[%emt 0:00:04]} 17. cxb5 {[%emt 0:00:07]} axb5 {[%emt 0:00:01]} 18. Rbc1 {[%emt 0:00:01]} Qb4 {[%emt 0:01:20]} 19. Qe2 {[%emt 0:01:35]} Na7 {[%emt 0:00:30]} 20. Rcd1 {[%emt 0:02:02]} Qc5 {[%emt 0:00:52]} 21. Nd4 {[%emt 0:00:35]} Bd7 {[%emt 0:00:02]} 22. Nd5 $1 {[%emt 0:00:08]} Re8 $2 {[%emt 0:00:20]} (22... Nxd5 $16 {war angesagt.} 23. exd5 Re8) 23. Rc1 $18 {[%emt 0:00:11]} Nxd5 {[%emt 0:00:27]} 24. Rxc5 {[%emt 0:00:03]} (24. exd5 Qxd5 25. Nf3 Bxb2 26. Qxb2 Qb7 $14) 24... Nf4 {[%emt 0:00:45]} (24... dxc5 $142 25. Nf3 Nf6) 25. Qd2 {[%emt 0:00:09]} ({Viel schwächer ist} 25. Qc2 dxc5 26. Qxc5 Rb7 $18) 25... dxc5 {[%emt 0:00:07]} 26. Nf3 {[%emt 0:00:19] [#] Schwarz muss nun Bxg7 beachten.} Bxb2 {[%emt 0:00:14]} 27. Qxb2 {[%emt 0:00:01]} (27. Qxd7 $142 Ne6 28. Qxa7) 27... Nc6 $2 {[%emt 0:00:04]} (27... Rb7 28. Ne5 Ne6) 28. Ne5 $2 {[%emt 0:00:10]} (28. Qd2) 28... Nxe5 {[%emt 0:00:02]} 29. Qxe5 {[%emt 0:00:01]} Ne6 {[%emt 0:00:01]} 30. Rd1 {[%emt 0:00:07]} Bc6 {[%emt 0:00:03]} 31. f4 {[%emt 0:00:14]} Ng7 {[%emt 0:00:05]} 32. Re1 {[%emt 0:00:13]} Rbc8 {[%emt 0:00:04]} 33. Qxc5 {[%emt 0:00:05]} Bxe4 {[%emt 0:00:04]} 34. Qxb5 {[%emt 0:00:01]} Bc6 {[%emt 0:00:02]} 35. Qe5 {[%emt 0:00:02]} Nf5 {[%emt 0:00:02]} 36. Bc4 {[%emt 0:00:04]} Rcd8 {[%emt 0:00:05]} (36... Nh4 $142 37. Bf1 Bb7) 37. a4 {[%emt 0:00:09][%cal Oc4f7]} Ng3 {[%emt 0:00:04]} (37... Ba8 $142 38. b4 e6) 38. Qe3 {[%emt 0:00:05]} Nf5 {[%emt 0:00:01]} 39. Qc3 {[%emt 0:00:05][%cal Oc4f7] [#] Droht stark Bxf7+!} h5 {[%emt 0:00:03]} (39... Rc8 $142 40. Qb4 e6) 40. Bd3 {[%emt 0:00:06]} Nd4 {[%emt 0:00:02]} 41. Be4 {[%emt 0:00:03]} Bxe4 {[%emt 0:00:08]} 42. Rxe4 {[%emt 0:00:00]} Nf5 {[%emt 0:00:01]} 43. a5 {[%emt 0:00:03][%cal Ba4a5,Ba5a6][%mdl 32]} h4 {[%emt 0:00:01]} 44. Re1 {[%emt 0:00:03]} Ng3 {[%emt 0:00:02]} 45. a6 {[%emt 0:00:02]} Rd1 {[%emt 0:00:02]} 46. Kf2 {[%emt 0:00:03] Verhindert Ne2.} (46. Rxd1 $2 {ist das falsche Schlagen.} Ne2+ 47. Kf2 Nxc3 $19) 46... Rd7 {[%emt 0:00:05]} 47. Ra1 $4 {[%emt 0:00:29][%mdl 8192]} (47. b4 $18) 47... Ne4+ $19 {[%emt 0:00:02]} 48. Kf3 {[%emt 0:00:00]} Nxc3 {[%emt 0:00:01] Gewichteter Fehlerwert: Weiß=0.64/Schwarz=0.81.  Verlustzug:     	---       	Schwarz=1     Fehler:       	Weiß=2     	Schwarz=5     Ungenau:       	Weiß=2     	Schwarz=6     OK:         	Weiß=14    	Schwarz=11    Bester:       	Weiß=3     	Schwarz=1     Stark:        	Weiß=1     	---} 0-1